[Event "Red Bull Chess Masters 2018"]
[Site "Istanbul"]
[Date "2018.10.20"]
[Round "1.1"]
[White "Eren, Cuneyt"]
[Black "Celikel, Fatih"]
[Result "0-1"]
[ECO "E80"]
[WhiteElo "2084"]
[BlackElo "1856"]
[Annotator "NA RC"]
[PlyCount "62"]
[EventDate "2018.10.19"]
[EventType "team-tourn"]
[EventCountry "TUR"]
[SourceTitle "playchess.com"]
[Source "ChessBase"]
[SourceQuality "1"]
[TimeControl "600+5"]

1. d4 {[%emt 0:00:05]} Nf6 {[%emt 0:00:05]} 2. c4 {[%emt 0:00:08]} g6 {[%emt 0:00:07]} 3. Nc3 {[%emt 0:00:09]} Bg7 {[%emt 0:00:36]} 4. e4 {[%emt 0:00:05]} d6 {[%emt 0:00:00]} 5. f3 {[%emt 0:00:24]} c6 {[%emt 0:01:19]} 6. Be3 {[%emt 0:00:23] LiveBook: 333 Games} a6 {[%emt 0:00:55]} 7. Qd2 {[%emt 0:01:18]} h5 {[%emt 0:01:02] E80: Königsindisch (Sämisch-Angriff)} (7... b5 8. Bh6 Bxh6 9. Qxh6 Be6 10. Nh3 Bxh3 11. Qxh3 Nbd7 12. Qh6 b4 13. Na4 Nb6 14. Nxb6 Qxb6 15. O-O-O O-O-O 16. Be2 c5 17. d5 {½-½ (17) Vitiugov,N (2707)-Jobava,B (2715) Poikovsky 2010}) 8. Bd3 {[%emt 0:00:10]} Nbd7 {[%emt 0:00:53]} 9. Nge2 {[%emt 0:00:26]} Qc7 {[%emt 0:00:51]} 10. Rc1 {[%emt 0:01:53]} e5 {[%emt 0:01:22]} 11. d5 {[%emt 0:00:35]} c5 {[%emt 0:01:01]} 12. Nd1 $146 {[%emt 0:01:33]} ({Vorgänger:} 12. a3 Rb8 13. Rb1 O-O 14. Bh6 b6 15. Bxg7 Kxg7 {1-0 (47) Jarmula,P (1828)-Janula,M (1767) Warsaw 2009}) 12... h4 {[%emt 0:00:56]} 13. Nf2 {[%emt 0:00:20]} Rb8 {[%emt 0:00:22]} 14. a4 {[%emt 0:00:20]} b6 {[%emt 0:00:16]} 15. Nh3 {[%emt 0:00:52]} ({Better is} 15. O-O $16) 15... Nf8 {[%emt 0:00:21]} 16. Ng5 {[%emt 0:00:42]} N8h7 {[%emt 0:00:29]} 17. h3 {[%emt 0:00:24]} Nxg5 {[%emt 0:00:05]} 18. Bxg5 {[%emt 0:00:05]} Bd7 {[%emt 0:00:04]} 19. b3 {[%emt 0:00:06]} b5 {[%emt 0:00:05]} 20. axb5 {[%emt 0:00:16]} axb5 {[%emt 0:00:02]} 21. O-O {[%emt 0:00:06]} Qc8 {[%emt 0:00:16]} 22. Kh2 {[%emt 0:00:37]} (22. Nc3 $16) 22... b4 {[%emt 0:00:04]} 23. Ra1 {[%emt 0:00:20]} Nh5 {[%emt 0:00:12]} 24. Ra7 {[%emt 0:00:29]} f6 {[%emt 0:00:07]} 25. Bxh4 {[%emt 0:00:07]} Nf4 $18 {[%emt 0:00:17]} (25... Bh6 $16 {is a better defense.} 26. Qa2 Nf4) 26. Nxf4 {[%emt 0:00:05]} exf4 {[%emt 0:00:01]} 27. Rxd7 {[%emt 0:00:15]} Qxd7 {[%emt 0:00:05]} 28. Bf2 {[%emt 0:00:05]} g5 {[%emt 0:00:05]} 29. Ra1 {[%emt 0:00:05]} f5 {[%emt 0:00:05]} 30. Ra6 {[%emt 0:00:00]} g4 {[%emt 0:00:04]} 31. Qxf4 {[%emt 0:00:00]} Be5 {[%emt 0:00:00]} 0-1

[Event "Red Bull Chess Masters 2018"]
[Site "Istanbul"]
[Date "2018.10.20"]
[Round "1.1"]
[White "Atas, Yunus"]
[Black "Tofan, Ibrahim"]
[Result "0-1"]
[ECO "D52"]
[WhiteElo "1921"]
[BlackElo "2070"]
[Annotator "NA RC"]
[PlyCount "124"]
[EventDate "2018.10.19"]
[EventType "team-tourn"]
[EventCountry "TUR"]
[SourceTitle "playchess.com"]
[Source "ChessBase"]
[SourceQuality "1"]
[TimeControl "600+5"]

1. d4 {[%emt 0:00:05]} d5 {[%emt 0:00:05]} 2. Nf3 {[%emt 0:00:05]} c6 {[%emt 0:00:10]} 3. c4 {[%emt 0:00:00]} e6 {[%emt 0:00:05]} 4. cxd5 {[%emt 0:00:04]} exd5 {[%emt 0:00:05]} 5. Qc2 {[%emt 0:00:13]} Bb4+ {[%emt 0:00:46]} 6. Nc3 {[%emt 0:00:21]} Ne7 {[%emt 0:00:30]} 7. Bg5 {[%emt 0:00:24]} h6 {[%emt 0:00:14]} 8. Bh4 {[%emt 0:00:12]} Qa5 {[%emt 0:00:17]} 9. Bxe7 {[%emt 0:00:15]} Bxe7 {[%emt 0:00:11]} 10. e3 {[%emt 0:00:06]} Nd7 {[%emt 0:00:36]} 11. Bd3 {[%emt 0:00:16]} Bd6 {[%emt 0:01:13]} 12. O-O {[%emt 0:00:10] D52: Queen's Gambit Declined: Cambridge Springs Variation} O-O {[%emt 0:00:05]} 13. a3 {[%emt 0:00:00]} Qd8 {[%emt 0:00:17]} (13... Qc7 14. Rac1 Qd8 15. h3 Re8 16. e4 dxe4 17. Nxe4 Nf6 18. Nc5 Bxc5 19. dxc5 Be6 {1-0 (45) Agrest,E (2574)-Godena,M (2517) Ajaccio 2008}) 14. b4 {[%emt 0:00:04]} a6 {[%emt 0:00:01]} 15. Rab1 {[%emt 0:00:15]} Qe7 {[%emt 0:00:11]} 16. Na4 {[%emt 0:01:33]} Nf6 {[%emt 0:00:32]} 17. h3 {[%emt 0:01:00]} Ne4 $146 {[%emt 0:00:18]} ({Predecessor:} 17... Rb8 18. Nc5 Re8 19. a4 {0-1 (38) Spirlin,M (2034)-Fer,V (2199) Ekaterinburg 2007}) 18. Nb6 {[%emt 0:00:39]} Rb8 {[%emt 0:00:05]} 19. Nxc8 {[%emt 0:00:08]} Rbxc8 {[%emt 0:00:09]} 20. Bxe4 {[%emt 0:00:41]} dxe4 {[%emt 0:00:05]} 21. Nd2 {[%emt 0:00:10]} f5 {[%emt 0:00:05]} 22. a4 {[%emt 0:00:13]} Kh7 {[%emt 0:00:08]} 23. Qb3 {[%emt 0:00:20]} Bb8 {[%emt 0:00:16]} 24. Nc4 {[%emt 0:01:02]} Rcd8 {[%emt 0:00:50]} 25. b5 {[%emt 0:00:09]} f4 {[%emt 0:00:34]} 26. bxc6 {[%emt 0:00:44]} bxc6 {[%emt 0:00:01]} 27. Qb7 {[%emt 0:01:20]} Qe6 {[%emt 0:00:37]} 28. Ne5 {[%emt 0:01:00]} Bxe5 {[%emt 0:00:05]} 29. dxe5 {[%emt 0:00:05]} f3 {[%emt 0:00:08]} 30. g4 {[%emt 0:00:23]} Qxe5 {[%emt 0:00:52]} 31. Qxc6 {[%emt 0:00:14] [#]} Rd6 $2 {[%emt 0:00:13]} ({Lieber} 31... Rf6 $1 $19 {[%cal Rf6c6]} 32. Qc4 h5) 32. Qc4 {[%emt 0:00:07]} (32. Qc7 $11) 32... Rg6 {[%emt 0:00:11]} 33. Rb4 {[%emt 0:00:12]} Re8 {[%emt 0:00:05]} 34. Qd4 {[%emt 0:00:05]} Qe7 {[%emt 0:00:03]} 35. Kh2 {[%emt 0:00:06]} Rxg4 {[%emt 0:00:17]} 36. Rg1 {[%emt 0:00:13]} Rxg1 {[%emt 0:00:05]} 37. Kxg1 {[%emt 0:00:04]} Qg5+ {[%emt 0:00:10]} 38. Kf1 {[%emt 0:00:06]} Qg2+ {[%emt 0:00:05]} 39. Ke1 {[%emt 0:00:05]} Qg1+ {[%emt 0:00:05]} 40. Kd2 {[%emt 0:00:05]} Qxf2+ {[%emt 0:00:05]} 41. Kc3 {[%emt 0:00:00]} Qe1+ {[%emt 0:00:21]} 42. Kb2 {[%emt 0:00:05]} Qe2+ {[%emt 0:00:24]} 43. Kb3 {[%emt 0:00:05]} f2 {[%emt 0:00:05]} 44. Rb7 {[%emt 0:00:03]} Qd3+ {[%emt 0:00:07]} 45. Qxd3 {[%emt 0:00:09]} exd3 {[%emt 0:00:05]} 46. Rf7 {[%emt 0:00:05]} Rxe3 {[%emt 0:00:05]} 47. Kc3 {[%emt 0:00:05]} Rxh3 {[%emt 0:00:17]} 48. Rxf2 {[%emt 0:00:01]} d2+ {[%emt 0:00:17]} 49. Kxd2 {[%emt 0:00:05]} Rh4 {[%emt 0:00:05]} 50. a5 {[%emt 0:00:05]} Rh5 {[%emt 0:00:05]} 51. Kc3 {[%emt 0:00:05]} Rxa5 {[%emt 0:00:05]} 52. Kb4 {[%emt 0:00:05]} Rb5+ {[%emt 0:00:05]} 53. Ka4 {[%emt 0:00:05]} h5 {[%emt 0:00:05]} 54. Rd2 {[%emt 0:00:05]} Rf5 {[%emt 0:00:05]} 55. Kb4 {[%emt 0:00:05]} h4 {[%emt 0:00:05]} 56. Kc4 {[%emt 0:00:05]} g5 {[%emt 0:00:05]} 57. Kd4 {[%emt 0:00:01]} Kg6 {[%emt 0:00:00]} 58. Ke4 {[%emt 0:00:05]} Rf6 {[%emt 0:00:00]} 59. Rd8 $19 {[%emt 0:00:06]} h3 {[%emt 0:00:06]} 60. Rg8+ {[%emt 0:00:13]} Kh5 {[%emt 0:00:10]} 61. Ke5 {[%emt 0:00:01]} Rf1 {[%emt 0:00:00]} 62. Rh8+ {[%emt 0:00:09]} Kg4 {[%emt 0:00:01]} 0-1

[Event "Red Bull Chess Masters 2018"]
[Site "Istanbul"]
[Date "2018.10.20"]
[Round "1.1"]
[White "Sural, Ceren"]
[Black "Sahin, Handenur"]
[Result "1/2-1/2"]
[ECO "C54"]
[WhiteElo "1662"]
[BlackElo "1998"]
[Annotator "NA RC"]
[PlyCount "117"]
[EventDate "2018.10.19"]
[EventType "team-tourn"]
[EventCountry "TUR"]
[SourceTitle "playchess.com"]
[Source "ChessBase"]
[SourceQuality "1"]
[TimeControl "600+5"]

1. e4 {[%emt 0:00:05]} e5 {[%emt 0:00:05]} 2. Nf3 {[%emt 0:00:05]} Nc6 {[%emt 0:00:05]} 3. Bc4 {[%emt 0:00:05]} Nf6 {[%emt 0:00:05]} 4. d3 {[%emt 0:00:05]} Bc5 {[%emt 0:00:05]} 5. c3 {[%emt 0:00:00]} d6 {[%emt 0:00:00]} 6. h3 {[%emt 0:00:00]} a6 {[%emt 0:00:00]} 7. Bb3 {[%emt 0:00:00]} Ba7 {[%emt 0:00:03]} 8. Nbd2 {[%emt 0:00:13]} O-O {[%emt 0:00:15]} 9. Nf1 {[%emt 0:00:09]} Ne7 {[%emt 0:00:23] LiveBook: 76 Partien C54: Italienische Partie (Hauptvariante)} 10. Qe2 {[%emt 0:01:18]} (10. Ng3 Ng6 11. O-O h6 12. d4 Re8 13. Re1 b5 14. Be3 Bb7 15. Bc2 exd4 16. Nxd4 d5 17. Nb3 Bxe3 18. Rxe3 {½-½ (55) Miton,K (2584)-Bacrot,E (2725) Riadh 2017}) 10... Ng6 {[%emt 0:00:14]} 11. g3 {[%emt 0:00:15]} Be6 {[%emt 0:00:14]} 12. Ne3 {[%emt 0:01:08]} h6 $146 {[%emt 0:00:35]} ({Vorgänger:} 12... Bxb3 13. axb3 d5 14. Nf5 {1-0 (48) Gregory,S (2161)-James,S (2041) Sunningdale 2008}) 13. Ng2 {[%emt 0:00:24]} Bxb3 {[%emt 0:00:46]} 14. axb3 {[%emt 0:00:09]} Qe7 {[%emt 0:00:11]} 15. Ngh4 {[%emt 0:00:00]} Qe6 {[%emt 0:00:43]} 16. b4 {[%emt 0:00:30]} Nxh4 {[%emt 0:00:04]} 17. Nxh4 {[%emt 0:00:16]} d5 {[%emt 0:00:14]} 18. Nf5 {[%emt 0:00:23]} Rfe8 {[%emt 0:00:48]} 19. g4 {[%emt 0:00:05]} dxe4 {[%emt 0:00:16]} 20. dxe4 {[%emt 0:00:05]} Qc6 {[%emt 0:00:03]} 21. f3 {[%emt 0:00:12]} Qb5 {[%emt 0:00:07]} 22. Qxb5 {[%emt 0:00:30]} axb5 {[%emt 0:00:02]} 23. g5 {[%emt 0:00:37]} hxg5 {[%emt 0:00:30]} 24. Bxg5 {[%emt 0:00:03]} Nd7 {[%emt 0:00:28]} 25. O-O-O {[%emt 0:00:32]} Nf8 {[%emt 0:00:08]} 26. Ne7+ {[%emt 0:00:23]} Kh7 {[%emt 0:00:07]} 27. Nd5 {[%emt 0:00:26]} Ne6 {[%emt 0:00:04]} 28. Bd2 {[%emt 0:00:37]} c6 {[%emt 0:00:05]} 29. Ne3 {[%emt 0:00:03]} Red8 {[%emt 0:00:36]} 30. Nf5 {[%emt 0:00:23]} Bb6 {[%emt 0:00:17]} 31. Kc2 {[%emt 0:00:19]} Rd7 {[%emt 0:00:25]} 32. h4 {[%emt 0:00:15]} Rad8 {[%emt 0:00:17]} 33. h5 {[%emt 0:00:09]} Rd3 {[%emt 0:00:25]} 34. h6 {[%emt 0:00:33]} g6 {[%emt 0:00:05]} 35. Ng7 {[%emt 0:00:03]} Nf4 {[%emt 0:00:39]} 36. Bxf4 {[%emt 0:00:17]} Rxd1 {[%emt 0:00:05]} 37. Rxd1 {[%emt 0:00:05]} Rxd1 {[%emt 0:00:05]} 38. Kxd1 {[%emt 0:00:05]} exf4 {[%emt 0:00:05]} 39. Ne8 {[%emt 0:00:00]} Kxh6 {[%emt 0:00:42]} 40. Nd6 {[%emt 0:00:00]} Kg7 {[%emt 0:00:15]} 41. Nxb7 {[%emt 0:00:02]} Kf6 $11 {[%emt 0:00:23]} 42. Ke2 {[%emt 0:00:22]} Ke7 {[%emt 0:00:16]} 43. Kd3 {[%emt 0:00:11]} g5 {[%emt 0:00:18]} 44. e5 {[%emt 0:00:13]} Ke6 {[%emt 0:00:09]} 45. Ke4 {[%emt 0:00:05]} f5+ {[%emt 0:00:13]} 46. exf6 {[%emt 0:00:01]} Kxf6 {[%emt 0:00:05]} 47. Nd6 {[%emt 0:00:05]} Ke6 {[%emt 0:00:16]} 48. Nf5 {[%emt 0:00:03]} Bf2 {[%emt 0:00:17]} 49. Nh6 {[%emt 0:00:13]} Bb6 {[%emt 0:00:20]} 50. Ng4 {[%emt 0:00:05]} Bc7 {[%emt 0:00:05]} 51. Nf2 {[%emt 0:00:01]} Bb6 {[%emt 0:00:14]} 52. Ng4 {[%emt 0:00:13]} Bc7 {[%emt 0:00:07]} 53. b3 {[%emt 0:00:01]} Bb6 {[%emt 0:00:05]} 54. c4 {[%emt 0:00:12]} Bg1 {[%emt 0:00:22]} 55. cxb5 {[%emt 0:00:05]} cxb5 {[%emt 0:00:05]} 56. Nh6 {[%emt 0:00:05]} Bf2 {[%emt 0:00:05]} 57. Nf5 {[%emt 0:00:05]} Bg1 {[%emt 0:00:10]} 58. Nh6 {[%emt 0:00:47]} Be3 {[%emt 0:00:06]} 59. Nf5 {[%emt 0:00:08]} 1/2-1/2

[Event "Red Bull Chess Masters 2018"]
[Site "Istanbul"]
[Date "2018.10.20"]
[Round "1.1"]
[White "Eraslan, Ecem"]
[Black "Incecik, Seyma Zeynep"]
[Result "0-1"]
[ECO "B01"]
[WhiteElo "1290"]
[BlackElo "1796"]
[Annotator "NA RC"]
[PlyCount "41"]
[EventDate "2018.10.19"]
[EventType "team-tourn"]
[EventCountry "TUR"]
[SourceTitle "playchess.com"]
[Source "ChessBase"]
[SourceQuality "1"]
[TimeControl "600+5"]

1. e4 {[%emt 0:00:05]} d5 {[%emt 0:00:05]} 2. exd5 {[%emt 0:00:05]} Qxd5 {[%emt 0:00:00]} 3. d4 {[%emt 0:00:00]} Nf6 {[%emt 0:00:11]} 4. Nf3 {[%emt 0:00:02]} Bg4 {[%emt 0:00:05]} 5. Be2 {[%emt 0:00:05]} e6 {[%emt 0:00:11]} 6. h3 {[%emt 0:01:02]} Bh5 {[%emt 0:00:22]} 7. O-O {[%emt 0:02:09]} Nc6 {[%emt 0:00:10]} 8. c4 {[%emt 0:00:17]} Qd7 {[%emt 0:00:03]} 9. Be3 {[%emt 0:01:08]} O-O-O {[%emt 0:00:09]} 10. Qb3 {[%emt 0:01:14]} Na5 {[%emt 0:05:05]} 11. Qc2 {[%emt 0:00:43]} Bg6 {[%emt 0:00:27]} 12. Qd2 {[%emt 0:01:29]} Nc6 {[%emt 0:00:05]} 13. Nc3 {[%emt 0:00:11]} Ne4 {[%emt 0:00:39]} 14. Nxe4 {[%emt 0:00:43]} Bxe4 {[%emt 0:00:05]} 15. a3 {[%emt 0:01:04]} Bxf3 {[%emt 0:00:18]} 16. Bxf3 {[%emt 0:00:01]} Nxd4 {[%emt 0:00:17]} 17. Bxd4 {[%emt 0:00:37]} Qxd4 {[%emt 0:00:05]} 18. Qc2 {[%emt 0:00:05]} Be7 {[%emt 0:00:05]} 19. b4 {[%emt 0:00:05]} Bf6 {[%emt 0:00:05]} 20. Rab1 {[%emt 0:00:28]} Kb8 {[%emt 0:01:41]} 21. c5 {[%emt 0:00:12]} 0-1

[Event "Red Bull Chess Masters 2018"]
[Site "Istanbul"]
[Date "2018.10.20"]
[Round "1.1"]
[White "Tofan, Zeynep"]
[Black "Sahin, Hayrun Nisa"]
[Result "0-1"]
[ECO "B46"]
[WhiteElo "1058"]
[BlackElo "1708"]
[Annotator "NA RC"]
[PlyCount "100"]
[EventDate "2018.10.19"]
[EventType "team-tourn"]
[EventCountry "TUR"]
[SourceTitle "playchess.com"]
[Source "ChessBase"]
[SourceQuality "1"]
[TimeControl "600+5"]

1. e4 {[%emt 0:00:05]} c5 {[%emt 0:00:05]} 2. Nc3 {[%emt 0:00:05]} e6 {[%emt 0:00:00]} 3. Nf3 {[%emt 0:00:00]} a6 {[%emt 0:00:41]} 4. d4 {[%emt 0:00:20]} cxd4 {[%emt 0:00:05]} 5. Nxd4 {[%emt 0:00:05]} Qc7 {[%emt 0:00:07]} 6. a3 {[%emt 0:00:43]} Nc6 {[%emt 0:00:58]} 7. Nxc6 {[%emt 0:00:37]} bxc6 {[%emt 0:00:07]} 8. Bd3 {[%emt 0:00:31]} d5 {[%emt 0:00:12]} 9. exd5 {[%emt 0:01:39]} cxd5 {[%emt 0:00:08]} 10. Qe2 {[%emt 0:02:21]} Bb7 {[%emt 0:00:16]} 11. O-O {[%emt 0:00:26]} Nf6 {[%emt 0:00:05]} 12. g3 {[%emt 0:00:00]} Qc6 {[%emt 0:00:11]} 13. Re1 {[%emt 0:00:26]} Rc8 {[%emt 0:00:02]} 14. Bg5 {[%emt 0:00:45]} d4 {[%emt 0:00:21]} 15. Ne4 {[%emt 0:00:26]} Nxe4 {[%emt 0:00:26]} 16. Qxe4 {[%emt 0:01:04]} Qxe4 {[%emt 0:00:05]} 17. Bxe4 {[%emt 0:00:05]} Bxe4 {[%emt 0:00:05]} 18. Rxe4 {[%emt 0:00:03]} f6 {[%emt 0:01:44]} 19. Bd2 {[%emt 0:00:53]} Rxc2 {[%emt 0:00:30]} 20. Rxd4 {[%emt 0:00:05]} Bc5 {[%emt 0:01:16]} 21. Rd3 {[%emt 0:00:12]} O-O {[%emt 0:00:08]} 22. b4 {[%emt 0:00:11]} Bb6 {[%emt 0:00:33]} 23. Rd1 {[%emt 0:00:29]} Rfc8 {[%emt 0:00:12]} 24. Rd6 {[%emt 0:00:04]} R8c6 {[%emt 0:00:30]} 25. Rxc6 {[%emt 0:00:08]} Rxc6 {[%emt 0:00:05]} 26. a4 {[%emt 0:00:13]} Kf7 {[%emt 0:00:03]} 27. a5 {[%emt 0:00:01]} Bd4 {[%emt 0:00:34]} 28. Be3 {[%emt 0:00:16]} Bxe3 {[%emt 0:00:10]} 29. fxe3 {[%emt 0:00:05]} Rc3 {[%emt 0:00:05]} 30. Rd7+ {[%emt 0:00:05]} Kg6 {[%emt 0:00:05]} 31. Kf2 {[%emt 0:00:05]} Rb3 {[%emt 0:00:05]} 32. Rb7 {[%emt 0:00:05]} Rb2+ {[%emt 0:00:00]} 33. Ke1 {[%emt 0:00:00]} Rxh2 {[%emt 0:00:00]} 34. b5 {[%emt 0:00:00]} axb5 {[%emt 0:00:02]} 35. Rxb5 {[%emt 0:00:00]} Ra2 {[%emt 0:00:00]} 36. Kd1 {[%emt 0:00:05]} e5 {[%emt 0:00:04]} 37. e4 {[%emt 0:00:06]} h5 {[%emt 0:00:20]} 38. Kc1 {[%emt 0:00:05]} Ra3 {[%emt 0:00:05]} 39. Kb2 {[%emt 0:00:05]} Rxg3 {[%emt 0:00:05]} 40. a6 {[%emt 0:00:00]} h4 {[%emt 0:00:30]} 41. a7 {[%emt 0:00:00]} h3 {[%emt 0:00:05]} 42. a8=Q {[%emt 0:00:01]} h2 {[%emt 0:00:06]} 43. Qe8+ {[%emt 0:00:06]} Kg5 {[%emt 0:00:14]} 44. Rxe5+ {[%emt 0:00:06]} fxe5 {[%emt 0:00:11]} 45. Qxe5+ {[%emt 0:00:05]} Kh4 {[%emt 0:00:05]} 46. Qf4+ {[%emt 0:00:05]} Kh3 {[%emt 0:00:05]} 47. Qf5+ {[%emt 0:00:00]} Kg2 {[%emt 0:00:00]} 48. e5 {[%emt 0:00:26]} h1=Q {[%emt 0:00:00]} 49. Qe4+ {[%emt 0:00:03]} Kh2 {[%emt 0:00:06]} 50. Qh7+ {[%emt 0:00:05]} Rh3 {[%emt 0:00:01]} 0-1

[Event "Red Bull Chess Masters 2018"]
[Site "Istanbul"]
[Date "2018.10.20"]
[Round "1.2"]
[White "Tofan, Ibrahim"]
[Black "Atas, Yunus"]
[Result "1-0"]
[ECO "B11"]
[WhiteElo "2070"]
[BlackElo "1921"]
[Annotator "NA RC"]
[PlyCount "81"]
[EventDate "2018.10.19"]
[EventType "team-tourn"]
[EventCountry "TUR"]
[SourceTitle "playchess.com"]
[Source "ChessBase"]
[SourceQuality "1"]
[TimeControl "600+5"]

1. e4 {[%emt 0:00:05]} c6 {[%emt 0:00:05]} 2. Nc3 {[%emt 0:00:05]} d5 {[%emt 0:00:05]} 3. Nf3 {[%emt 0:00:04]} Bg4 {[%emt 0:00:03]} 4. h3 {[%emt 0:00:05]} Bh5 {[%emt 0:00:05]} 5. exd5 {[%emt 0:00:05]} cxd5 {[%emt 0:00:01]} 6. Bb5+ {[%emt 0:00:17]} Nc6 {[%emt 0:00:05]} 7. d4 {[%emt 0:00:05]} e6 {[%emt 0:00:05]} 8. g4 {[%emt 0:00:05]} Bg6 {[%emt 0:00:27]} 9. Ne5 {[%emt 0:00:12]} Rc8 {[%emt 0:00:34]} 10. h4 {[%emt 0:00:38]} f6 {[%emt 0:00:27]} 11. Nxg6 {[%emt 0:01:22]} hxg6 {[%emt 0:00:27]} 12. Qd3 {[%emt 0:00:45]} Kf7 {[%emt 0:00:05]} 13. Bxc6 {[%emt 0:00:05]} Rxc6 {[%emt 0:00:05]} 14. h5 {[%emt 0:00:05]} gxh5 {[%emt 0:00:07]} 15. Rxh5 {[%emt 0:00:33]} Rxh5 {[%emt 0:00:05]} 16. gxh5 {[%emt 0:00:00]} Bb4 {[%emt 0:00:13]} 17. Bd2 {[%emt 0:00:20]} Ne7 {[%emt 0:00:11]} 18. a3 {[%emt 0:00:21]} Bxc3 {[%emt 0:00:13]} 19. Bxc3 {[%emt 0:00:10]} Nf5 {[%emt 0:00:51]} 20. O-O-O {[%emt 0:00:32]} Qc7 {[%emt 0:00:03]} 21. Kb1 {[%emt 0:01:43]} Qf4 {[%emt 0:01:17]} 22. Qe2 {[%emt 0:02:15]} Rc7 {[%emt 0:00:41]} 23. f3 {[%emt 0:00:05]} Nd6 {[%emt 0:00:05]} 24. Qf2 {[%emt 0:00:05]} Nc4 {[%emt 0:00:05]} 25. Qg2 {[%emt 0:00:05]} Qh6 {[%emt 0:00:05]} 26. Rg1 {[%emt 0:00:05]} Nxa3+ {[%emt 0:00:05]} 27. bxa3 {[%emt 0:00:05]} Rxc3 {[%emt 0:00:05]} 28. Kb2 {[%emt 0:00:05]} Rc4 {[%emt 0:00:05]} 29. f4 {[%emt 0:00:05]} Rxd4 {[%emt 0:00:05]} 30. f5 {[%emt 0:00:05]} exf5 {[%emt 0:02:18]} 31. Qg3 {[%emt 0:01:51]} f4 {[%emt 0:00:05]} 32. Qg4 {[%emt 0:00:05]} Kg8 {[%emt 0:01:22]} 33. Qe6+ {[%emt 0:00:03]} Kh7 {[%emt 0:00:05]} 34. Qf5+ {[%emt 0:00:04]} Kg8 {[%emt 0:00:20]} 35. Rg6 {[%emt 0:00:05]} Qh7 {[%emt 0:00:18]} 36. h6 {[%emt 0:00:11]} Kf7 {[%emt 0:00:29]} 37. Rxg7+ {[%emt 0:00:05]} Qxg7 {[%emt 0:00:04]} 38. Qd7+ {[%emt 0:00:06]} Kg6 {[%emt 0:00:05]} 39. Qxg7+ {[%emt 0:00:05]} Kf5 {[%emt 0:00:05]} 40. h7 {[%emt 0:00:05]} f3 {[%emt 0:00:05]} 41. Qh8 {[%emt 0:00:05]} 1-0

[Event "Red Bull Chess Masters 2018"]
[Site "Istanbul"]
[Date "2018.10.20"]
[Round "1.2"]
[White "Sahin, Handenur"]
[Black "Sural, Ceren"]
[Result "1-0"]
[ECO "B01"]
[WhiteElo "1998"]
[BlackElo "1662"]
[Annotator "NA RC"]
[PlyCount "97"]
[EventDate "2018.10.19"]
[EventType "team-tourn"]
[EventCountry "TUR"]
[SourceTitle "playchess.com"]
[Source "ChessBase"]
[SourceQuality "1"]
[TimeControl "600+5"]

1. e4 {[%emt 0:00:05]} d5 {[%emt 0:00:05]} 2. exd5 {[%emt 0:00:05]} Qxd5 {[%emt 0:00:05]} 3. d4 {[%emt 0:00:05]} Nf6 {[%emt 0:00:03]} 4. Nf3 {[%emt 0:00:00]} c6 {[%emt 0:00:36]} 5. Be2 {[%emt 0:00:11]} Qd8 {[%emt 0:00:44]} 6. O-O {[%emt 0:00:06]} Bf5 {[%emt 0:00:48]} 7. c4 {[%emt 0:00:19]} e6 {[%emt 0:00:06]} 8. Nc3 {[%emt 0:00:04]} Be7 {[%emt 0:00:14]} 9. h3 {[%emt 0:00:18]} O-O {[%emt 0:00:06]} 10. Bg5 {[%emt 0:00:11]} Nbd7 {[%emt 0:00:07]} 11. Bd3 {[%emt 0:01:00]} Bg6 {[%emt 0:00:50]} 12. Bxg6 {[%emt 0:00:22]} hxg6 {[%emt 0:00:21]} 13. Qd2 {[%emt 0:00:05]} Nb6 {[%emt 0:00:41]} 14. Ne5 {[%emt 0:00:12]} Nfd7 {[%emt 0:01:02]} 15. Bxe7 {[%emt 0:00:19]} Qxe7 {[%emt 0:00:05]} 16. Nxd7 {[%emt 0:00:05]} Qxd7 {[%emt 0:00:06]} 17. b3 {[%emt 0:00:33]} e5 {[%emt 0:00:28]} 18. Rad1 {[%emt 0:00:09]} Rad8 {[%emt 0:00:03]} 19. c5 {[%emt 0:01:34]} Nc8 {[%emt 0:00:51]} 20. d5 {[%emt 0:00:12]} cxd5 {[%emt 0:00:12]} 21. Qxd5 {[%emt 0:00:29]} Qc7 {[%emt 0:00:59]} 22. Qc4 {[%emt 0:00:07]} Ne7 {[%emt 0:02:20]} 23. Nb5 {[%emt 0:00:35]} Qb8 {[%emt 0:00:01]} 24. Rxd8 {[%emt 0:00:43]} Rxd8 {[%emt 0:00:10]} 25. Nd6 {[%emt 0:00:05]} Rf8 {[%emt 0:00:05]} 26. Rd1 {[%emt 0:00:05]} Nc6 {[%emt 0:00:03]} 27. Qb5 {[%emt 0:00:26]} Nd8 {[%emt 0:00:20]} 28. Qd7 {[%emt 0:00:05]} Ne6 {[%emt 0:00:14]} 29. b4 {[%emt 0:00:50]} b6 {[%emt 0:00:29]} 30. c6 {[%emt 0:00:35]} Nc7 {[%emt 0:00:01]} 31. b5 {[%emt 0:00:20]} Qd8 {[%emt 0:00:04]} 32. Nxf7 {[%emt 0:00:22]} Qf6 {[%emt 0:00:14]} 33. Qxc7 {[%emt 0:00:05]} Rxf7 {[%emt 0:00:05]} 34. Qd8+ {[%emt 0:00:05]} Qxd8 {[%emt 0:00:05]} 35. Rxd8+ {[%emt 0:00:11]} Kh7 {[%emt 0:00:04]} 36. Rd7 {[%emt 0:00:05]} Rf8 {[%emt 0:00:05]} 37. Rxa7 {[%emt 0:00:01]} Rc8 {[%emt 0:00:09]} 38. Rb7 {[%emt 0:00:05]} e4 {[%emt 0:00:05]} 39. Rxb6 {[%emt 0:00:05]} Kg8 {[%emt 0:00:00]} 40. Rb7 {[%emt 0:00:08]} Kf8 {[%emt 0:00:02]} 41. c7 {[%emt 0:00:05]} Ke7 {[%emt 0:00:01]} 42. b6 {[%emt 0:00:00]} Kd7 {[%emt 0:00:05]} 43. Rb8 {[%emt 0:00:02]} g5 {[%emt 0:00:03]} 44. a4 {[%emt 0:00:05]} g6 {[%emt 0:00:02]} 45. a5 {[%emt 0:00:11]} g4 {[%emt 0:00:05]} 46. hxg4 {[%emt 0:00:05]} g5 {[%emt 0:00:04]} 47. a6 {[%emt 0:00:00]} e3 {[%emt 0:00:05]} 48. fxe3 {[%emt 0:00:05]} Kc6 {[%emt 0:00:05]} 49. Rxc8 {[%emt 0:00:02]} 1-0